[Event "Titled Tuesday Blitz March 14 Late 2023"]
[White "Cardoso Cardoso, Jose Gabriel"]
[Black "Rodchenkov, Sergey D."]
[WhiteFideId "4430492"]
[BlackFideId "4168712"]
[WhiteElo "2496"]
[BlackElo "2277"]
[Result "1-0"]
[Round "11"]
[TimeControl "180+2"]
[Date "2023.03.14"]
[WhiteClock "0:00:05"]
[BlackClock "0:00:13"]

1. d4 {[%clk 0:03:00]}  d5 {[%clk 0:02:59]} 2. c4 {[%clk 0:03:01]}  dxc4 {[%clk 0:02:59]} 3. Nf3 {[%clk 0:03:00]}  Nf6 {[%clk 0:03:00]} 4. e3 {[%clk 0:03:01]}  e6 {[%clk 0:02:59]} 5. Bxc4 {[%clk 0:03:01]}  c5 {[%clk 0:03:00]} 6. O-O {[%clk 0:03:02]}  a6 {[%clk 0:03:01]} 7. Bd3 {[%clk 0:02:59]}  b5 {[%clk 0:02:50]} 8. b3 {[%clk 0:02:54]}  Bb7 {[%clk 0:02:48]} 9. Bb2 {[%clk 0:02:54]}  Nbd7 {[%clk 0:02:46]} 10. Nbd2 {[%clk 0:02:54]}  cxd4 {[%clk 0:02:43]} 11. Nxd4 {[%clk 0:02:52]}  Be7 {[%clk 0:02:40]} 12. Be2 {[%clk 0:02:49]}  O-O {[%clk 0:02:33]} 13. a4 {[%clk 0:02:49]}  bxa4 {[%clk 0:02:31]} 14. Rxa4 {[%clk 0:02:46]}  Nc5 {[%clk 0:02:30]} 15. Ra1 {[%clk 0:02:39]}  Nd5 {[%clk 0:02:18]} 16. Nc4 {[%clk 0:02:34]}  Rc8 {[%clk 0:02:11]} 17. Bf3 {[%clk 0:02:13]}  Ba8 {[%clk 0:02:02]} 18. Qe2 {[%clk 0:02:10]}  Qc7 {[%clk 0:01:54]} 19. Rfd1 {[%clk 0:01:41]}  Qb8 {[%clk 0:01:50]} 20. Na5 {[%clk 0:01:34]}  Bd8 {[%clk 0:01:43]} 21. Rdb1 {[%clk 0:00:58]}  Bc7 {[%clk 0:01:05]} 22. g3 {[%clk 0:00:51]}  Bd6 {[%clk 0:01:00]} 23. Kg2 {[%clk 0:00:42]}  Rfd8 {[%clk 0:00:57]} 24. Rc1 {[%clk 0:00:39]}  Be7 {[%clk 0:00:52]} 25. Ba3 {[%clk 0:00:37]}  Qb6 {[%clk 0:00:49]} 26. Nc4 {[%clk 0:00:36]}  Qb8 {[%clk 0:00:49]} 27. Rab1 {[%clk 0:00:36]}  Bf8 {[%clk 0:00:45]} 28. Na5 {[%clk 0:00:34]}  Qb6 {[%clk 0:00:45]} 29. Nc4 {[%clk 0:00:34]}  Qb8 {[%clk 0:00:45]} 30. h4 {[%clk 0:00:32]}  h6 {[%clk 0:00:41]} 31. h5 {[%clk 0:00:32]}  Nd7 {[%clk 0:00:41]} 32. Bxf8 {[%clk 0:00:31]}  Rxf8 {[%clk 0:00:41]} 33. Rc2 {[%clk 0:00:24]}  Ne5 {[%clk 0:00:39]} 34. Nxe5 {[%clk 0:00:23]}  Qxe5 {[%clk 0:00:40]} 35. Rxc8 {[%clk 0:00:20]}  Rxc8 {[%clk 0:00:39]} 36. Qxa6 {[%clk 0:00:20]}  Rb8 {[%clk 0:00:35]} 37. Qd3 {[%clk 0:00:18]}  Nf6 {[%clk 0:00:34]} 38. Nc6 {[%clk 0:00:11]}  Bxc6 {[%clk 0:00:32]} 39. Bxc6 {[%clk 0:00:12]}  Qxh5 {[%clk 0:00:32]} 40. Bf3 {[%clk 0:00:12]}  Qc5 {[%clk 0:00:30]} 41. Ra1 {[%clk 0:00:07]}  Qb4 {[%clk 0:00:26]} 42. Rb1 {[%clk 0:00:03]}  g5 {[%clk 0:00:24]} 43. Be2 {[%clk 0:00:02]}  Kg7 {[%clk 0:00:22]} 44. Qc4 {[%clk 0:00:02]}  Qd6 {[%clk 0:00:20]} 45. Bf3 {[%clk 0:00:03]}  Rb4 {[%clk 0:00:20]} 46. Qc3 {[%clk 0:00:02]}  g4 {[%clk 0:00:20]} 47. Be2 {[%clk 0:00:02]}  Qd5+ {[%clk 0:00:20]} 48. Kg1 {[%clk 0:00:03]}  Qd6 {[%clk 0:00:20]} 49. Rd1 {[%clk 0:00:03]}  Qb6 {[%clk 0:00:18]} 50. Bc4 {[%clk 0:00:04]}  Kg6 {[%clk 0:00:18]} 51. Rd4 {[%clk 0:00:04]}  h5 {[%clk 0:00:17]} 52. Rf4 {[%clk 0:00:04]}  Ne8 {[%clk 0:00:13]} 53. Bd3+ {[%clk 0:00:05]}  f5 {[%clk 0:00:13]} 54. Rxb4 {[%clk 0:00:05]} 1-0


[Site "https://www.chess.com"]

[Event "Titled Tuesday Blitz March 14 Late 2023"]
[White "Rustemov, Alexander"]
[Black "Osmak, Yuliia"]
[WhiteFideId "4119002"]
[BlackFideId "14101602"]
[WhiteElo "2914"]
[BlackElo "2271"]
[Result "1/2-1/2"]
[Round "11"]
[TimeControl "180+2"]
[Date "2023.03.14"]
[WhiteClock "0:00:02"]
[BlackClock "0:00:04"]

1. d4 {[%clk 0:03:00]}  d5 {[%clk 0:02:59]} 2. c4 {[%clk 0:03:00]}  e6 {[%clk 0:02:59]} 3. Nc3 {[%clk 0:02:59]}  Nf6 {[%clk 0:02:58]} 4. cxd5 {[%clk 0:02:59]}  exd5 {[%clk 0:02:58]} 5. Bg5 {[%clk 0:02:59]}  c6 {[%clk 0:02:55]} 6. e3 {[%clk 0:02:58]}  h6 {[%clk 0:02:55]} 7. Bh4 {[%clk 0:02:58]}  Bd6 {[%clk 0:02:49]} 8. Bd3 {[%clk 0:02:49]}  Nbd7 {[%clk 0:02:49]} 9. Qc2 {[%clk 0:02:46]}  O-O {[%clk 0:02:47]} 10. Nge2 {[%clk 0:02:45]}  Re8 {[%clk 0:02:46]} 11. h3 {[%clk 0:02:38]}  Be7 {[%clk 0:02:35]} 12. O-O {[%clk 0:02:36]}  Ne4 {[%clk 0:02:23]} 13. Bxe7 {[%clk 0:02:35]}  Qxe7 {[%clk 0:02:24]} 14. Rae1 {[%clk 0:02:16]}  Ndf6 {[%clk 0:02:20]} 15. f3 {[%clk 0:02:12]}  Nxc3 {[%clk 0:02:02]} 16. Nxc3 {[%clk 0:02:12]}  Qd6 {[%clk 0:02:00]} 17. Qf2 {[%clk 0:02:11]}  Nh5 {[%clk 0:01:47]} 18. Ne2 {[%clk 0:02:08]}  f5 {[%clk 0:01:41]} 19. g4 {[%clk 0:01:57]}  fxg4 {[%clk 0:01:35]} 20. hxg4 {[%clk 0:01:56]}  Nf6 {[%clk 0:01:35]} 21. Ng3 {[%clk 0:01:43]}  Bd7 {[%clk 0:01:34]} 22. a3 {[%clk 0:01:37]}  Rf8 {[%clk 0:01:30]} 23. Qh2 {[%clk 0:01:35]}  Rae8 {[%clk 0:01:27]} 24. Nf5 {[%clk 0:01:32]}  Qxh2+ {[%clk 0:01:25]} 25. Kxh2 {[%clk 0:01:33]}  Bxf5 {[%clk 0:01:22]} 26. Bxf5 {[%clk 0:01:27]}  Re7 {[%clk 0:01:21]} 27. Bg6 {[%clk 0:01:21]}  Ne8 {[%clk 0:01:13]} 28. Kg3 {[%clk 0:01:15]}  Rf6 {[%clk 0:01:11]} 29. Bxe8 {[%clk 0:01:13]}  Rxe8 {[%clk 0:01:11]} 30. b4 {[%clk 0:01:09]}  Rfe6 {[%clk 0:01:10]} 31. Kf2 {[%clk 0:01:08]}  a6 {[%clk 0:01:09]} 32. a4 {[%clk 0:01:08]}  Kf7 {[%clk 0:01:04]} 33. Re2 {[%clk 0:01:08]}  g5 {[%clk 0:00:56]} 34. b5 {[%clk 0:01:07]}  axb5 {[%clk 0:00:55]} 35. axb5 {[%clk 0:01:08]}  Ra8 {[%clk 0:00:53]} 36. bxc6 {[%clk 0:01:06]}  bxc6 {[%clk 0:00:53]} 37. Rb1 {[%clk 0:01:06]}  Kg6 {[%clk 0:00:49]} 38. Rb3 {[%clk 0:01:05]}  Rf6 {[%clk 0:00:45]} 39. Kg2 {[%clk 0:01:03]}  h5 {[%clk 0:00:41]} 40. gxh5+ {[%clk 0:01:02]}  Kxh5 {[%clk 0:00:42]} 41. Kg3 {[%clk 0:01:01]}  Raf8 {[%clk 0:00:40]} 42. Rf2 {[%clk 0:01:01]}  Kg6 {[%clk 0:00:36]} 43. Kg4 {[%clk 0:00:55]}  Re8 {[%clk 0:00:30]} 44. Rc3 {[%clk 0:00:54]}  Rh8 {[%clk 0:00:29]} 45. Rfc2 {[%clk 0:00:51]}  Rc8 {[%clk 0:00:15]} 46. Rc5 {[%clk 0:00:49]}  Re8 {[%clk 0:00:14]} 47. R2c3 {[%clk 0:00:45]}  Ree6 {[%clk 0:00:14]} 48. Ra5 {[%clk 0:00:42]}  Re7 {[%clk 0:00:10]} 49. Ra8 {[%clk 0:00:41]}  Ref7 {[%clk 0:00:09]} 50. Rg8+ {[%clk 0:00:36]}  Kh7 {[%clk 0:00:09]} 51. Rxg5 {[%clk 0:00:33]}  Rxf3 {[%clk 0:00:09]} 52. Rc2 {[%clk 0:00:30]}  Rf2 {[%clk 0:00:09]} 53. Rxf2 {[%clk 0:00:26]}  Rxf2 {[%clk 0:00:10]} 54. Re5 {[%clk 0:00:24]}  Kg6 {[%clk 0:00:10]} 55. Re6+ {[%clk 0:00:24]}  Rf6 {[%clk 0:00:10]} 56. Re7 {[%clk 0:00:19]}  Rf7 {[%clk 0:00:10]} 57. Re6+ {[%clk 0:00:13]}  Rf6 {[%clk 0:00:11]} 58. Re7 {[%clk 0:00:13]}  Rf7 {[%clk 0:00:11]} 59. Re8 {[%clk 0:00:11]}  Rf6 {[%clk 0:00:10]} 60. Rc8 {[%clk 0:00:10]}  Kf7 {[%clk 0:00:10]} 61. Rc7+ {[%clk 0:00:10]}  Kg6 {[%clk 0:00:09]} 62. Kg3 {[%clk 0:00:09]}  Kf5 {[%clk 0:00:09]} 63. Kf3 {[%clk 0:00:10]}  Kg5+ {[%clk 0:00:09]} 64. Ke2 {[%clk 0:00:10]}  Kg4 {[%clk 0:00:08]} 65. Kd3 {[%clk 0:00:09]}  Kf3 {[%clk 0:00:08]} 66. Rg7 {[%clk 0:00:08]}  Kf2 {[%clk 0:00:05]} 67. Rg5 {[%clk 0:00:08]}  Kf3 {[%clk 0:00:04]} 68. Rg1 {[%clk 0:00:08]}  Kf2 {[%clk 0:00:04]} 69. Rg7 {[%clk 0:00:07]}  Kf3 {[%clk 0:00:03]} 70. Re7 {[%clk 0:00:08]}  Kg4 {[%clk 0:00:03]} 71. Kc3 {[%clk 0:00:08]}  Kf3 {[%clk 0:00:02]} 72. Kb4 {[%clk 0:00:08]}  Ke2 {[%clk 0:00:01]} 73. Kc5 {[%clk 0:00:08]}  Kd3 {[%clk 0:00:02]} 74. Re5 {[%clk 0:00:08]}  Rg6 {[%clk 0:00:02]} 75. Re8 {[%clk 0:00:06]}  Rf6 {[%clk 0:00:02]} 76. Re7 {[%clk 0:00:04]}  Rg6 {[%clk 0:00:02]} 77. Re5 {[%clk 0:00:04]}  Rf6 {[%clk 0:00:03]} 78. Kb6 {[%clk 0:00:05]}  Rg6 {[%clk 0:00:03]} 79. Kc7 {[%clk 0:00:06]}  Kc4 {[%clk 0:00:03]} 80. Kd7 {[%clk 0:00:06]}  c5 {[%clk 0:00:03]} 81. dxc5 {[%clk 0:00:06]}  Kxc5 {[%clk 0:00:04]} 82. e4 {[%clk 0:00:04]}  Rd6+ {[%clk 0:00:02]} 83. Ke7 {[%clk 0:00:03]}  Kc6 {[%clk 0:00:02]} 84. exd5+ {[%clk 0:00:02]}  Rxd5 {[%clk 0:00:03]} 85. Rxd5 {[%clk 0:00:02]}  Kxd5 {[%clk 0:00:04]} 1/2-1/2


[Site "https://www.chess.com"]

[Event "Titled Tuesday Blitz March 14 Late 2023"]
[White "Vlassov, Nikolai"]
[Black "Yeletsky, Ivan"]
[WhiteFideId "4103360"]
[BlackFideId "24180327"]
[WhiteElo "2324"]
[BlackElo "2414"]
[Result "0-1"]
[Round "11"]
[TimeControl "180+2"]
[Date "2023.03.14"]
[WhiteClock "0:00:08"]
[BlackClock "0:00:13"]

1. e4 {[%clk 0:03:00]}  Nc6 {[%clk 0:02:55]} 2. d4 {[%clk 0:03:00]}  d5 {[%clk 0:02:54]} 3. Nc3 {[%clk 0:02:58]}  dxe4 {[%clk 0:02:49]} 4. d5 {[%clk 0:02:58]}  Nb8 {[%clk 0:02:50]} 5. Bf4 {[%clk 0:02:55]}  Nf6 {[%clk 0:02:44]} 6. Nb5 {[%clk 0:02:49]}  Na6 {[%clk 0:02:43]} 7. c4 {[%clk 0:02:48]}  e6 {[%clk 0:02:23]} 8. a3 {[%clk 0:02:40]}  exd5 {[%clk 0:02:15]} 9. cxd5 {[%clk 0:02:40]}  Nxd5 {[%clk 0:02:15]} 10. Bg3 {[%clk 0:02:08]}  c6 {[%clk 0:02:14]} 11. Bc4 {[%clk 0:02:05]}  Be7 {[%clk 0:01:56]} 12. Ne2 {[%clk 0:02:01]}  O-O {[%clk 0:01:55]} 13. Bxd5 {[%clk 0:01:56]}  cxd5 {[%clk 0:01:38]} 14. O-O {[%clk 0:01:55]}  Bg4 {[%clk 0:01:37]} 15. h3 {[%clk 0:01:47]}  Bh5 {[%clk 0:01:38]} 16. Qd2 {[%clk 0:01:39]}  Nc5 {[%clk 0:01:37]} 17. Ned4 {[%clk 0:01:30]}  a6 {[%clk 0:01:31]} 18. Nc3 {[%clk 0:01:19]}  Bg6 {[%clk 0:01:30]} 19. b4 {[%clk 0:01:10]}  Nd3 {[%clk 0:01:29]} 20. Qa2 {[%clk 0:01:00]}  Bf6 {[%clk 0:01:26]} 21. Nce2 {[%clk 0:00:55]}  Rc8 {[%clk 0:01:25]} 22. Rad1 {[%clk 0:00:54]}  Rc4 {[%clk 0:01:21]} 23. Nb3 {[%clk 0:00:52]}  Qc8 {[%clk 0:01:21]} 24. Rd2 {[%clk 0:00:51]}  Bg5 {[%clk 0:01:14]} 25. Na5 {[%clk 0:00:48]}  Nc1 {[%clk 0:00:45]} 26. Nxc1 {[%clk 0:00:33]}  Rxc1 {[%clk 0:00:44]} 27. Rdd1 {[%clk 0:00:21]}  Rxd1 {[%clk 0:00:36]} 28. Rxd1 {[%clk 0:00:21]}  e3 {[%clk 0:00:29]} 29. Rxd5 {[%clk 0:00:18]}  Qc1+ {[%clk 0:00:23]} 30. Kh2 {[%clk 0:00:18]}  Bf6 {[%clk 0:00:20]} 31. fxe3 {[%clk 0:00:16]}  Qxe3 {[%clk 0:00:20]} 32. Nc4 {[%clk 0:00:14]}  Qe6 {[%clk 0:00:20]} 33. Rd6 {[%clk 0:00:12]}  Qe4 {[%clk 0:00:20]} 34. Nd2 {[%clk 0:00:11]}  Qe2 {[%clk 0:00:18]} 35. Qd5 {[%clk 0:00:08]}  h5 {[%clk 0:00:13]} 0-1


[Site "https://www.chess.com"]

[Event "Titled Tuesday Blitz March 14 Late 2023"]
[White "Galchenko, Matvey"]
[Black "O`Gorman, Tom"]
[WhiteFideId "24175480"]
[BlackFideId "2508249"]
[WhiteElo "2404"]
[BlackElo "2271"]
[Result "1-0"]
[Round "11"]
[TimeControl "180+2"]
[Date "2023.03.14"]
[WhiteClock "0:02:21"]
[BlackClock "0:02:32"]

1. f4 {[%clk 0:03:00]}  d5 {[%clk 0:02:58]} 2. Nf3 {[%clk 0:03:00]}  Nf6 {[%clk 0:02:58]} 3. g3 {[%clk 0:03:01]}  c6 {[%clk 0:02:57]} 4. Bg2 {[%clk 0:03:01]}  Qb6 {[%clk 0:02:57]} 5. e3 {[%clk 0:02:58]}  Bg4 {[%clk 0:02:57]} 6. O-O {[%clk 0:02:57]}  Nbd7 {[%clk 0:02:57]} 7. Nc3 {[%clk 0:02:57]}  e5 {[%clk 0:02:56]} 8. h3 {[%clk 0:02:57]}  Bxf3 {[%clk 0:02:56]} 9. Qxf3 {[%clk 0:02:58]}  Bd6 {[%clk 0:02:55]} 10. Kh1 {[%clk 0:02:55]}  e4 {[%clk 0:02:53]} 11. Qe2 {[%clk 0:02:53]}  O-O-O {[%clk 0:02:50]} 12. d3 {[%clk 0:02:49]}  Rde8 {[%clk 0:02:47]} 13. dxe4 {[%clk 0:02:47]}  dxe4 {[%clk 0:02:46]} 14. Rd1 {[%clk 0:02:44]}  Qc7 {[%clk 0:02:45]} 15. b3 {[%clk 0:02:42]}  h5 {[%clk 0:02:40]} 16. Bb2 {[%clk 0:02:42]}  Bc5 {[%clk 0:02:39]} 17. Na4 {[%clk 0:02:36]}  Be7 {[%clk 0:02:39]} 18. c4 {[%clk 0:02:34]}  Kb8 {[%clk 0:02:37]} 19. Rd2 {[%clk 0:02:23]}  Nc5 {[%clk 0:02:32]} 20. Be5 {[%clk 0:02:21]} 1-0


[Site "https://www.chess.com"]

[Event "Titled Tuesday Blitz March 14 Late 2023"]
[White "Pakleza, Zbigniew"]
[Black "Filgueira, Hernan"]
[WhiteFideId "1119290"]
[BlackFideId "101770"]
[WhiteElo "2410"]
[BlackElo "2363"]
[Result "1-0"]
[Round "11"]
[TimeControl "180+2"]
[Date "2023.03.14"]
[WhiteClock "0:00:04"]
[BlackClock "0:00:01"]

1. d4 {[%clk 0:03:00]}  e6 {[%clk 0:02:53]} 2. Nf3 {[%clk 0:03:00]}  f5 {[%clk 0:02:53]} 3. c4 {[%clk 0:02:57]}  Nf6 {[%clk 0:02:52]} 4. Nc3 {[%clk 0:02:57]}  Bb4 {[%clk 0:02:51]} 5. Qb3 {[%clk 0:02:57]}  a5 {[%clk 0:02:43]} 6. a3 {[%clk 0:02:57]}  Bxc3+ {[%clk 0:02:42]} 7. Qxc3 {[%clk 0:02:58]}  b6 {[%clk 0:02:43]} 8. Bg5 {[%clk 0:02:55]}  O-O {[%clk 0:02:40]} 9. g3 {[%clk 0:02:53]}  Bb7 {[%clk 0:02:39]} 10. Bg2 {[%clk 0:02:53]}  d6 {[%clk 0:02:37]} 11. Bxf6 {[%clk 0:02:49]}  Qxf6 {[%clk 0:02:37]} 12. O-O {[%clk 0:02:48]}  Nd7 {[%clk 0:02:28]} 13. Rfd1 {[%clk 0:02:46]}  a4 {[%clk 0:02:27]} 14. Rac1 {[%clk 0:02:44]}  Qe7 {[%clk 0:02:05]} 15. Qb4 {[%clk 0:02:31]}  e5 {[%clk 0:01:55]} 16. Nxe5 {[%clk 0:01:44]}  Bxg2 {[%clk 0:00:53]} 17. Nxd7 {[%clk 0:01:44]}  Bh3 {[%clk 0:00:49]} 18. Nxf8 {[%clk 0:01:17]}  Qe4 {[%clk 0:00:46]} 19. f3 {[%clk 0:01:12]}  Qe3+ {[%clk 0:00:41]} 20. Kh1 {[%clk 0:01:13]}  Qxe2 {[%clk 0:00:25]} 21. Qd2 {[%clk 0:01:07]}  Qxf3+ {[%clk 0:00:24]} 22. Kg1 {[%clk 0:01:08]}  Rxf8 {[%clk 0:00:22]} 23. Qf2 {[%clk 0:01:03]}  Qh5 {[%clk 0:00:19]} 24. Re1 {[%clk 0:00:47]}  f4 {[%clk 0:00:18]} 25. gxf4 {[%clk 0:00:42]}  Qg4+ {[%clk 0:00:15]} 26. Qg3 {[%clk 0:00:41]}  Rxf4 {[%clk 0:00:14]} 27. Re8+ {[%clk 0:00:24]}  Kf7 {[%clk 0:00:13]} 28. Rce1 {[%clk 0:00:25]}  Qxg3+ {[%clk 0:00:13]} 29. hxg3 {[%clk 0:00:26]}  Rxd4 {[%clk 0:00:13]} 30. R8e7+ {[%clk 0:00:23]}  Kf6 {[%clk 0:00:13]} 31. Rxc7 {[%clk 0:00:19]}  Rd2 {[%clk 0:00:13]} 32. Rc6 {[%clk 0:00:18]}  Rg2+ {[%clk 0:00:08]} 33. Kh1 {[%clk 0:00:19]}  Rxb2 {[%clk 0:00:07]} 34. Rxd6+ {[%clk 0:00:20]}  Kg5 {[%clk 0:00:07]} 35. Rd4 {[%clk 0:00:12]}  Bf5 {[%clk 0:00:04]} 36. Re5 {[%clk 0:00:09]}  h5 {[%clk 0:00:02]} 37. Rb5 {[%clk 0:00:08]}  Ra2 {[%clk 0:00:01]} 38. Rd3 {[%clk 0:00:04]} 1-0


[Site "https://www.chess.com"]

[Event "Titled Tuesday Blitz March 14 Late 2023"]
[White "Larino Nieto, David"]
[Black "Melikyan, Gnel"]
[WhiteFideId "2256444"]
[BlackFideId "54109990"]
[WhiteElo "2506"]
[BlackElo "2138"]
[Result "1-0"]
[Round "11"]
[TimeControl "180+2"]
[Date "2023.03.14"]
[WhiteClock "0:00:59"]
[BlackClock "0:00:19"]

1. e4 {[%clk 0:02:42]}  c5 {[%clk 0:02:40]} 2. Nc3 {[%clk 0:02:40]}  a6 {[%clk 0:02:38]} 3. g3 {[%clk 0:02:40]}  b5 {[%clk 0:02:38]} 4. Bg2 {[%clk 0:02:40]}  Bb7 {[%clk 0:02:38]} 5. d3 {[%clk 0:02:41]}  e6 {[%clk 0:02:38]} 6. f4 {[%clk 0:02:41]}  Nf6 {[%clk 0:02:37]} 7. Nf3 {[%clk 0:02:41]}  d5 {[%clk 0:02:37]} 8. e5 {[%clk 0:02:41]}  Nfd7 {[%clk 0:02:37]} 9. O-O {[%clk 0:02:40]}  Nc6 {[%clk 0:02:36]} 10. a3 {[%clk 0:02:38]}  Rc8 {[%clk 0:02:36]} 11. Ne2 {[%clk 0:02:33]}  g6 {[%clk 0:02:33]} 12. c3 {[%clk 0:02:31]}  Be7 {[%clk 0:02:29]} 13. d4 {[%clk 0:02:31]}  cxd4 {[%clk 0:02:29]} 14. cxd4 {[%clk 0:02:32]}  Nb6 {[%clk 0:02:27]} 15. b3 {[%clk 0:02:30]}  a5 {[%clk 0:02:26]} 16. h3 {[%clk 0:02:24]}  Ba6 {[%clk 0:02:25]} 17. Rf2 {[%clk 0:02:21]}  b4 {[%clk 0:02:20]} 18. a4 {[%clk 0:02:20]}  Bf8 {[%clk 0:02:17]} 19. g4 {[%clk 0:02:19]}  Ne7 {[%clk 0:02:17]} 20. Ng3 {[%clk 0:02:18]}  Qd7 {[%clk 0:02:11]} 21. Bd2 {[%clk 0:02:15]}  h5 {[%clk 0:01:57]} 22. Bf1 {[%clk 0:02:09]}  Bxf1 {[%clk 0:01:54]} 23. Qxf1 {[%clk 0:02:10]}  h4 {[%clk 0:01:40]} 24. Nh1 {[%clk 0:01:56]}  Bg7 {[%clk 0:01:32]} 25. Qd3 {[%clk 0:01:55]}  Qc6 {[%clk 0:01:20]} 26. Raf1 {[%clk 0:01:46]}  Qc2 {[%clk 0:01:17]} 27. Qxc2 {[%clk 0:01:40]}  Rxc2 {[%clk 0:01:17]} 28. Be1 {[%clk 0:01:41]}  Rc1 {[%clk 0:01:12]} 29. Rb2 {[%clk 0:01:39]}  Bh6 {[%clk 0:01:01]} 30. Bd2 {[%clk 0:01:35]}  Rc7 {[%clk 0:00:56]} 31. Rc1 {[%clk 0:01:28]}  Rxc1+ {[%clk 0:00:54]} 32. Bxc1 {[%clk 0:01:29]}  Kd7 {[%clk 0:00:51]} 33. Rc2 {[%clk 0:01:28]}  Bg7 {[%clk 0:00:47]} 34. Nf2 {[%clk 0:01:26]}  Kd8 {[%clk 0:00:33]} 35. Nd3 {[%clk 0:01:23]}  Nd7 {[%clk 0:00:33]} 36. Nc5 {[%clk 0:01:17]}  Nc8 {[%clk 0:00:30]} 37. Nb7+ {[%clk 0:01:13]}  Ke7 {[%clk 0:00:28]} 38. Nxa5 {[%clk 0:01:14]}  Ncb6 {[%clk 0:00:22]} 39. Nc6+ {[%clk 0:01:12]}  Kf8 {[%clk 0:00:20]} 40. a5 {[%clk 0:01:07]}  Na8 {[%clk 0:00:20]} 41. Nxb4 {[%clk 0:01:04]}  Kg8 {[%clk 0:00:19]} 42. Rc8+ {[%clk 0:00:59]}  Kh7 {[%clk 0:00:19]} 43. Ng5+ {[%clk 0:00:59]} 1-0


[Site "https://www.chess.com"]

[Event "Titled Tuesday Blitz March 14 Late 2023"]
[White "Sakun, Volodymyr"]
[Black "Fiorito, Joaquin"]
[WhiteFideId "14114062"]
[BlackFideId "180173"]
[WhiteElo "2331"]
[BlackElo "2157"]
[Result "1-0"]
[Round "11"]
[TimeControl "180+2"]
[Date "2023.03.14"]
[WhiteClock "0:00:16"]
[BlackClock "0:00:01"]

1. d4 {[%clk 0:03:00]}  Nf6 {[%clk 0:02:59]} 2. c4 {[%clk 0:03:00]}  e6 {[%clk 0:03:00]} 3. g3 {[%clk 0:03:00]}  d5 {[%clk 0:03:00]} 4. Nf3 {[%clk 0:02:59]}  dxc4 {[%clk 0:03:00]} 5. Bg2 {[%clk 0:02:57]}  c5 {[%clk 0:03:00]} 6. O-O {[%clk 0:02:56]}  Nc6 {[%clk 0:03:01]} 7. Qa4 {[%clk 0:02:41]}  Bd7 {[%clk 0:03:00]} 8. dxc5 {[%clk 0:02:37]}  Bxc5 {[%clk 0:02:55]} 9. Qxc4 {[%clk 0:02:37]}  Be7 {[%clk 0:02:54]} 10. Nc3 {[%clk 0:02:34]}  O-O {[%clk 0:02:54]} 11. Rd1 {[%clk 0:02:34]}  Rc8 {[%clk 0:02:54]} 12. Bg5 {[%clk 0:02:29]}  a6 {[%clk 0:02:48]} 13. Bxf6 {[%clk 0:01:57]}  Bxf6 {[%clk 0:02:47]} 14. Ne4 {[%clk 0:01:52]}  Be7 {[%clk 0:01:54]} 15. Qd3 {[%clk 0:01:36]}  Be8 {[%clk 0:01:35]} 16. Nd6 {[%clk 0:01:36]}  Bxd6 {[%clk 0:01:35]} 17. Qxd6 {[%clk 0:01:36]}  Qf6 {[%clk 0:01:30]} 18. Rab1 {[%clk 0:01:21]}  Rd8 {[%clk 0:01:23]} 19. Qa3 {[%clk 0:01:21]}  Bd7 {[%clk 0:01:20]} 20. Nd2 {[%clk 0:01:04]}  Nd4 {[%clk 0:01:07]} 21. Ne4 {[%clk 0:01:03]}  Qe5 {[%clk 0:00:56]} 22. f4 {[%clk 0:00:58]}  Nxe2+ {[%clk 0:00:50]} 23. Kf2 {[%clk 0:00:58]}  Qh5 {[%clk 0:00:48]} 24. Qf3 {[%clk 0:00:36]}  Qa5 {[%clk 0:00:25]} 25. Qxe2 {[%clk 0:00:35]}  Qxa2 {[%clk 0:00:25]} 26. Nc3 {[%clk 0:00:35]}  Qb3 {[%clk 0:00:24]} 27. Rd2 {[%clk 0:00:31]}  Bc8 {[%clk 0:00:18]} 28. Rbd1 {[%clk 0:00:30]}  Rxd2 {[%clk 0:00:15]} 29. Qxd2 {[%clk 0:00:30]}  b5 {[%clk 0:00:16]} 30. Ne4 {[%clk 0:00:29]}  Qc4 {[%clk 0:00:05]} 31. Qc3 {[%clk 0:00:25]}  Qa4 {[%clk 0:00:04]} 32. Rd2 {[%clk 0:00:22]}  Qa1 {[%clk 0:00:03]} 33. b4 {[%clk 0:00:19]}  Qb1 {[%clk 0:00:02]} 34. Nd6 {[%clk 0:00:19]}  Bd7 {[%clk 0:00:02]} 35. Nb7 {[%clk 0:00:16]}  Rc8 {[%clk 0:00:01]} 36. Qxc8+ {[%clk 0:00:16]} 1-0


[Site "https://www.chess.com"]

[Event "Titled Tuesday Blitz March 14 Late 2023"]
[White "Papasimakopoulos, Alexandros"]
[Black "Ezat, Mohamed"]
[WhiteFideId "4244125"]
[BlackFideId "10600906"]
[WhiteElo "2359"]
[BlackElo "2386"]
[Result "1-0"]
[Round "11"]
[TimeControl "180+2"]
[Date "2023.03.14"]
[WhiteClock "0:02:16"]
[BlackClock "0:01:53"]

1. d4 {[%clk 0:03:00]}  Nf6 {[%clk 0:02:55]} 2. c4 {[%clk 0:03:01]}  g6 {[%clk 0:02:56]} 3. Nc3 {[%clk 0:03:01]}  Bg7 {[%clk 0:02:56]} 4. Bg5 {[%clk 0:03:00]}  d6 {[%clk 0:02:56]} 5. e3 {[%clk 0:03:01]}  O-O {[%clk 0:02:56]} 6. Be2 {[%clk 0:03:01]}  h6 {[%clk 0:02:56]} 7. Bh4 {[%clk 0:03:01]}  Nbd7 {[%clk 0:02:57]} 8. Nf3 {[%clk 0:03:01]}  g5 {[%clk 0:02:57]} 9. Bg3 {[%clk 0:03:01]}  Nh5 {[%clk 0:02:57]} 10. Nd2 {[%clk 0:02:57]}  Nxg3 {[%clk 0:02:56]} 11. hxg3 {[%clk 0:02:58]}  c5 {[%clk 0:02:56]} 12. d5 {[%clk 0:02:57]}  Ne5 {[%clk 0:02:48]} 13. f4 {[%clk 0:02:57]}  Ng6 {[%clk 0:02:44]} 14. Bd3 {[%clk 0:02:56]}  e5 {[%clk 0:02:32]} 15. dxe6 {[%clk 0:02:54]}  Bxe6 {[%clk 0:02:31]} 16. Qh5 {[%clk 0:02:48]}  Nh8 {[%clk 0:02:08]} 17. fxg5 {[%clk 0:02:35]}  Bxc3 {[%clk 0:01:57]} 18. Qxh6 {[%clk 0:02:27]}  Re8 {[%clk 0:01:53]} 19. Bh7# {[%clk 0:02:16]} 1-0


[Site "https://www.chess.com"]